[Event "Commonwealth Open 2019"]
[Site "Delhi"]
[Date "2019.07.05"]
[Round "7.16"]
[White "Thipsay, Praveen M"]
[Black "Sanskriti, Goyal"]
[Result "0-1"]
[ECO "B09"]
[WhiteElo "2405"]
[BlackElo "1951"]
[Annotator "NA"]
[PlyCount "56"]
[EventDate "2019.06.30"]
[EventType "swiss"]
[EventCountry "IND"]
[SourceTitle "playchess.com"]
[Source "ChessBase"]
[SourceQuality "1"]
[TimeControl "5400+30"]

1. e4 {[%emt 0:00:00]} d6 {[%emt 0:00:00]} 2. d4 {[%emt 0:00:00]} Nf6 {[%emt 0:00:00]} 3. Nc3 {[%emt 0:00:09]} g6 {[%emt 0:00:04]} 4. f4 {[%emt 0:01:02]} Bg7 {[%emt 0:00:49]} 5. Nf3 {[%emt 0:00:34]} O-O {[%emt 0:00:09]} 6. e5 {[%emt 0:02:01]} Nfd7 {[%emt 0:01:56]} 7. h4 {[%emt 0:14:05]} c5 {[%emt 0:05:11]} 8. h5 {[%emt 0:05:02]} cxd4 {[%emt 0:01:34]} 9. Qxd4 {[%emt 0:06:51]} dxe5 {[%emt 0:02:47]} 10. Qf2 {[%emt 0:00:33]} e4 {[%emt 0:01:27]} 11. Ng5 {[%emt 0:06:43]} Nf6 {[%emt 0:15:33]} 12. hxg6 {[%emt 0:00:07]} hxg6 {[%emt 0:00:19]} 13. Qh4 {[%emt 0:19:51]} Qb6 {[%emt 0:17:12]} 14. Bc4 {[%emt 0:29:29]} Be6 {[%emt 0:10:33]} 15. Nxe6 {[%emt 0:02:04]} fxe6 {[%emt 0:03:07]} 16. g4 {[%emt 0:03:12]} Rc8 {[%emt 0:07:06]} 17. Bb3 {[%emt 0:00:35]} Nbd7 {[%emt 0:05:56]} 18. Qh3 {[%emt 0:00:16]} Nd5 {[%emt 0:09:26]} 19. f5 {[%emt 0:01:59]} Rxc3 {[%emt 0:02:42]} 20. Qh7+ {[%emt 0:00:22]} Kf8 {[%emt 0:00:53]} 21. bxc3 {[%emt 0:00:20]} N5f6 {[%emt 0:04:33]} 22. Qh3 {[%emt 0:00:51]} Ne5 {[%emt 0:03:02]} 23. Bh6 {[%emt 0:00:43]} Nexg4 {[%emt 0:00:20]} 24. Bxg7+ {[%emt 0:00:26]} Kxg7 {[%emt 0:00:01]} 25. fxg6 {[%emt 0:02:21]} Qf2+ {[%emt 0:02:54]} 26. Kd1 {[%emt 0:00:04]} Qf4 {[%emt 0:00:12]} 27. Ke1 {[%emt 0:00:03]} Rd8 {[%emt 0:01:53]} 28. Qg2 {[%emt 0:00:33]} Qe3+ {[%emt 0:00:41]} 0-1

[Event "Commonwealth Open 2019"]
[Site "Delhi"]
[Date "2019.07.05"]
[Round "7.17"]
[White "Mahalakshmi, M."]
[Black "Sanjeet, Manohar"]
[Result "1-0"]
[ECO "E92"]
[WhiteElo "2245"]
[BlackElo "1905"]
[Annotator "NA"]
[PlyCount "73"]
[EventDate "2019.06.30"]
[EventType "swiss"]
[EventCountry "IND"]
[SourceTitle "playchess.com"]
[Source "ChessBase"]
[SourceQuality "1"]
[TimeControl "5400+30"]

1. d4 {[%emt 0:00:00]} Nf6 {[%emt 0:00:00]} 2. c4 {[%emt 0:00:05]} g6 {[%emt 0:00:00]} 3. Nc3 {[%emt 0:00:04]} Bg7 {[%emt 0:00:00]} 4. e4 {[%emt 0:00:06]} d6 {[%emt 0:00:00]} 5. Nf3 {[%emt 0:00:04]} O-O {[%emt 0:02:21]} 6. Be2 {[%emt 0:00:02]} e5 {[%emt 0:00:09]} 7. Be3 {[%emt 0:00:04]} Ng4 {[%emt 0:07:09]} 8. Bg5 {[%emt 0:00:11]} Qe8 {[%emt 0:01:15]} 9. h3 {[%emt 0:06:49]} Nf6 {[%emt 0:07:07]} 10. dxe5 {[%emt 0:03:14]} dxe5 {[%emt 0:00:08]} 11. O-O {[%emt 0:01:08]} Na6 {[%emt 0:10:04]} 12. Qc2 {[%emt 0:05:14]} c6 {[%emt 0:01:52]} 13. Rad1 {[%emt 0:02:02]} Nc7 {[%emt 0:03:35]} 14. Be3 {[%emt 0:05:45]} Nd7 {[%emt 0:13:45]} 15. c5 {[%emt 0:03:02]} Ne6 16. b4 {[%emt 0:00:47]} a5 {[%emt 0:03:28]} 17. a3 {[%emt 0:02:05]} Kh8 {[%emt 0:06:40]} 18. Na4 {[%emt 0:05:26]} axb4 {[%emt 0:02:01]} 19. axb4 {[%emt 0:05:10]} f5 {[%emt 0:00:07]} 20. exf5 {[%emt 0:11:44]} gxf5 {[%emt 0:00:10]} 21. Bc4 {[%emt 0:02:49]} e4 {[%emt 0:02:33]} 22. Nd4 {[%emt 0:03:56]} Ne5 {[%emt 0:02:12]} 23. Nb6 {[%emt 0:01:11]} Nxd4 {[%emt 0:12:32]} 24. Bxd4 {[%emt 0:02:14]} Qg6 {[%emt 0:01:32]} 25. Bxe5 {[%emt 0:09:14]} Bxe5 {[%emt 0:00:03]} 26. f4 {[%emt 0:03:08]} exf3 {[%emt 0:02:13]} 27. Nxa8 {[%emt 0:00:42]} Qg3 {[%emt 0:03:29]} 28. Rxf3 {[%emt 0:00:43]} Qh2+ {[%emt 0:00:36]} 29. Kf1 {[%emt 0:01:53]} Re8 {[%emt 0:01:08]} 30. Qf2 {[%emt 0:01:21]} Bb8 {[%emt 0:04:00]} 31. Qd4+ {[%emt 0:00:30]} Be5 {[%emt 0:00:28]} 32. Qg1 {[%emt 0:00:07]} Qxg1+ {[%emt 0:03:25]} 33. Kxg1 {[%emt 0:00:02]} f4 {[%emt 0:00:07]} 34. Rfd3 {[%emt 0:01:23]} Bf6 {[%emt 0:00:22]} 35. Rd6 {[%emt 0:01:05]} Bh4 {[%emt 0:00:49]} 36. Nc7 {[%emt 0:01:04]} Rf8 {[%emt 0:00:26]} 37. Be6 {[%emt 0:01:09]} 1-0

[Event "Commonwealth Open 2019"]
[Site "Delhi"]
[Date "2019.07.05"]
[Round "7.18"]
[White "Saypuri, Srithan"]
[Black "Srihari L R"]
[Result "1/2-1/2"]
[ECO "B06"]
[WhiteElo "1816"]
[BlackElo "2200"]
[Annotator "NA"]
[PlyCount "119"]
[EventDate "2019.06.30"]
[EventType "swiss"]
[EventCountry "IND"]
[SourceTitle "playchess.com"]
[Source "ChessBase"]
[SourceQuality "1"]
[TimeControl "5400+30"]

1. e4 {[%emt 0:04:30]} g6 {[%emt 0:00:07]} 2. d4 {[%emt 0:00:06]} Bg7 {[%emt 0:00:06]} 3. Nc3 {[%emt 0:00:03]} d6 {[%emt 0:00:06]} 4. Be3 {[%emt 0:00:09]} Nd7 {[%emt 0:04:10]} 5. Qd2 {[%emt 0:00:21]} a6 {[%emt 0:02:53]} 6. Bd3 {[%emt 0:04:39]} b5 {[%emt 0:02:29]} 7. f3 {[%emt 0:04:05]} Bb7 {[%emt 0:01:04]} 8. Rd1 {[%emt 0:04:40]} Rc8 {[%emt 0:03:35]} 9. Nce2 {[%emt 0:01:59]} c5 {[%emt 0:01:31]} 10. c3 {[%emt 0:00:17]} e5 11. d5 {[%emt 0:05:47]} c4 {[%emt 0:11:58]} 12. Bb1 {[%emt 0:01:43]} Bh6 {[%emt 0:06:29]} 13. Nh3 {[%emt 0:08:05]} Qh4+ {[%emt 0:01:46]} 14. Nf2 {[%emt 0:00:23]} Bxe3 {[%emt 0:00:12]} 15. Qxe3 {[%emt 0:00:06]} Qh6 16. Ng4 {[%emt 0:06:16]} Qf8 {[%emt 0:01:23]} 17. Nf2 {[%emt 0:11:58]} Qh6 {[%emt 0:06:22]} 18. Ng4 {[%emt 0:03:06]} Qxe3 {[%emt 0:05:58]} 19. Nxe3 {[%emt 0:00:07]} Ne7 {[%emt 0:00:07]} 20. O-O {[%emt 0:04:08]} O-O {[%emt 0:00:54]} 21. f4 {[%emt 0:03:35]} exf4 {[%emt 0:19:27]} 22. Rxf4 {[%emt 0:02:14]} Kg7 {[%emt 0:03:13]} 23. Nd4 {[%emt 0:04:13]} Rce8 {[%emt 0:03:08]} 24. Kf1 {[%emt 0:05:22]} Nc5 {[%emt 0:00:47]} 25. Ke2 {[%emt 0:01:00]} Na4 {[%emt 0:02:15]} 26. Rd2 {[%emt 0:00:59]} Bc8 {[%emt 0:06:41]} 27. Kf2 {[%emt 0:05:32]} Ng8 {[%emt 0:00:56]} 28. Kg1 {[%emt 0:03:44]} Nc5 {[%emt 0:01:16]} 29. Nf1 {[%emt 0:03:04]} Nf6 {[%emt 0:02:42]} 30. Ng3 {[%emt 0:00:48]} h5 {[%emt 0:00:07]} 31. h4 {[%emt 0:01:38]} Bd7 {[%emt 0:00:44]} 32. Nf3 {[%emt 0:04:18]} Re7 {[%emt 0:01:45]} 33. Ng5 {[%emt 0:01:01]} Ng4 {[%emt 0:00:17]} 34. Nf3 {[%emt 0:01:33]} Rfe8 {[%emt 0:00:40]} 35. Nd4 {[%emt 0:00:32]} f6 {[%emt 0:07:01]} 36. Rd1 {[%emt 0:02:32]} Ne3 {[%emt 0:00:36]} 37. Rd2 {[%emt 0:00:25]} Ng4 {[%emt 0:00:31]} 38. Rd1 {[%emt 0:00:09]} Ne5 {[%emt 0:01:19]} 39. Rd2 {[%emt 0:01:14]} Bg4 {[%emt 0:00:59]} 40. Kh2 {[%emt 0:01:19]} Rb7 {[%emt 0:02:00]} 41. Nc6 {[%emt 0:00:31]} Rc8 {[%emt 0:02:09]} 42. Nxe5 {[%emt 0:01:22]} fxe5 {[%emt 0:00:16]} 43. Rf1 {[%emt 0:00:03]} Rf8 {[%emt 0:00:45]} 44. Rxf8 {[%emt 0:00:32]} Kxf8 {[%emt 0:00:01]} 45. Rf2+ {[%emt 0:00:07]} Rf7 {[%emt 0:00:52]} 46. Rxf7+ {[%emt 0:00:05]} Kxf7 {[%emt 0:00:01]} 47. Bc2 {[%emt 0:00:21]} a5 {[%emt 0:00:28]} 48. a3 {[%emt 0:00:05]} Kf6 {[%emt 0:00:24]} 49. Nf1 {[%emt 0:01:19]} Be2 {[%emt 0:00:10]} 50. Nd2 {[%emt 0:00:03]} Bd3 {[%emt 0:00:17]} 51. Bxd3 {[%emt 0:00:05]} Nxd3 {[%emt 0:00:27]} 52. b4 {[%emt 0:00:04]} cxb3 {[%emt 0:01:25]} 53. Nxb3 a4 {[%emt 0:00:21]} 54. Nd2 {[%emt 0:00:26]} g5 {[%emt 0:00:33]} 55. g3 {[%emt 0:00:07]} Ne1 {[%emt 0:00:52]} 56. c4 {[%emt 0:00:41]} b4 {[%emt 0:00:47]} 57. axb4 {[%emt 0:00:05]} g4 {[%emt 0:00:19]} 58. Nb1 {[%emt 0:02:03]} Nc2 {[%emt 0:00:27]} 59. Nc3 {[%emt 0:01:11]} a3 {[%emt 0:00:11]} 60. Na2 {[%emt 0:00:05]} 1/2-1/2

[Event "Commonwealth Open 2019"]
[Site "Delhi"]
[Date "2019.07.05"]
[Round "7.19"]
[White "Aaryan Varshney"]
[Black "Sa, Kannan"]
[Result "1-0"]
[ECO "A43"]
[WhiteElo "2284"]
[BlackElo "1947"]
[Annotator "NA"]
[PlyCount "63"]
[EventDate "2019.06.30"]
[EventType "swiss"]
[EventCountry "IND"]
[SourceTitle "playchess.com"]
[Source "ChessBase"]
[SourceQuality "1"]
[TimeControl "5400+30"]

1. d4 {[%emt 0:00:00]} c5 {[%emt 0:15:27]} 2. d5 {[%emt 0:00:00]} d6 {[%emt 0:00:52]} 3. c4 {[%emt 0:00:00]} g6 {[%emt 0:00:20]} 4. e4 {[%emt 0:00:17]} Bg7 {[%emt 0:00:29]} 5. Nf3 {[%emt 0:00:38]} Nd7 {[%emt 0:02:12]} 6. Be2 {[%emt 0:02:28]} Ngf6 {[%emt 0:03:14]} 7. Nc3 {[%emt 0:00:28]} O-O {[%emt 0:00:30]} 8. O-O {[%emt 0:00:07]} Ne8 {[%emt 0:01:31]} 9. Bf4 {[%emt 0:01:41]} Ne5 {[%emt 0:09:07]} 10. Nxe5 {[%emt 0:03:37]} dxe5 {[%emt 0:00:23]} 11. Be3 {[%emt 0:00:13]} b6 {[%emt 0:01:07]} 12. a3 {[%emt 0:00:30]} Nd6 {[%emt 0:02:18]} 13. b4 {[%emt 0:01:50]} Bd7 {[%emt 0:11:38]} 14. f3 {[%emt 0:20:20]} Rc8 {[%emt 0:06:25]} 15. bxc5 {[%emt 0:07:35]} bxc5 {[%emt 0:01:31]} 16. Qc2 {[%emt 0:02:27]} a6 {[%emt 0:08:55]} 17. Rfb1 {[%emt 0:00:53]} Qa5 {[%emt 0:00:13]} 18. Rb2 {[%emt 0:03:42]} Rb8 {[%emt 0:01:02]} 19. Rab1 {[%emt 0:01:22]} Qc7 {[%emt 0:04:01]} 20. Bd3 {[%emt 0:04:13]} f5 {[%emt 0:06:58]} 21. Rxb8 {[%emt 0:02:30]} Rxb8 {[%emt 0:00:02]} 22. Rxb8+ {[%emt 0:00:02]} Qxb8 {[%emt 0:00:02]} 23. Bxc5 {[%emt 0:00:26]} Qc8 {[%emt 0:01:13]} 24. Qf2 {[%emt 0:00:44]} Bh6 {[%emt 0:00:19]} 25. Nd1 {[%emt 0:07:14]} Bc1 {[%emt 0:03:53]} 26. Kh1 {[%emt 0:08:21]} f4 {[%emt 0:09:26]} 27. Nc3 {[%emt 0:07:17]} Kf7 {[%emt 0:09:14]} 28. Na2 {[%emt 0:02:12]} Nb7 {[%emt 0:00:20]} 29. Bxe7 {[%emt 0:01:35]} Be3 {[%emt 0:01:15]} 30. Qh4 {[%emt 0:00:02]} Qg8 {[%emt 0:00:31]} 31. Qf6+ {[%emt 0:00:14]} Ke8 {[%emt 0:00:03]} 32. Qxe5 {[%emt 0:01:50]} 1-0

[Event "Commonwealth Open 2019"]
[Site "Delhi"]
[Date "2019.07.05"]
[Round "7.20"]
[White "Saurabh, Anand"]
[Black "Anilkumar, O.T."]
[Result "0-1"]
[ECO "B15"]
[WhiteElo "2351"]
[BlackElo "1989"]
[Annotator "NA"]
[PlyCount "148"]
[EventDate "2019.06.30"]
[EventType "swiss"]
[EventCountry "IND"]
[SourceTitle "playchess.com"]
[Source "ChessBase"]
[SourceQuality "1"]
[TimeControl "5400+30"]

1. d4 {[%emt 0:05:47]} g6 {[%emt 0:00:00]} 2. e4 {[%emt 0:00:15]} c6 {[%emt 0:00:00]} 3. Nc3 {[%emt 0:00:16]} Bg7 {[%emt 0:00:00]} 4. f4 {[%emt 0:00:36]} d5 {[%emt 0:00:00]} 5. e5 {[%emt 0:00:12]} h5 {[%emt 0:00:00]} 6. Nf3 {[%emt 0:01:36]} Nh6 {[%emt 0:00:11]} 7. Bd3 {[%emt 0:00:08]} Bg4 {[%emt 0:00:02]} 8. h3 {[%emt 0:03:32]} Bxf3 {[%emt 0:00:02]} 9. Qxf3 {[%emt 0:00:09]} e6 {[%emt 0:00:05]} 10. O-O {[%emt 0:00:35]} h4 {[%emt 0:00:02]} 11. Be3 {[%emt 0:01:24]} Nf5 {[%emt 0:00:04]} 12. Bf2 {[%emt 0:00:13]} Nd7 {[%emt 0:00:06]} 13. b3 {[%emt 0:00:10]} Bf8 {[%emt 0:01:57]} 14. Ne2 {[%emt 0:00:40]} b5 {[%emt 0:04:53]} 15. c4 {[%emt 0:01:12]} a6 {[%emt 0:00:44]} 16. a4 {[%emt 0:03:11]} bxc4 {[%emt 0:03:28]} 17. bxc4 {[%emt 0:08:17]} Bb4 {[%emt 0:00:02]} 18. Rfc1 {[%emt 0:01:37]} Kf8 {[%emt 0:00:30]} 19. cxd5 {[%emt 0:01:19]} cxd5 {[%emt 0:00:03]} 20. Rc6 {[%emt 0:00:29]} Rc8 {[%emt 0:10:48]} 21. Rxa6 {[%emt 0:08:28]} Nb8 {[%emt 0:00:10]} 22. Ra8 {[%emt 0:00:29]} Qd7 {[%emt 0:10:10]} 23. Bxf5 {[%emt 0:08:00]} gxf5 {[%emt 0:02:20]} 24. Qb3 {[%emt 0:00:09]} Qb7 {[%emt 0:09:02]} 25. Ra5 {[%emt 0:00:19]} Nc6 {[%emt 0:01:52]} 26. Rb5 {[%emt 0:00:10]} Qe7 {[%emt 0:00:24]} 27. Rc1 {[%emt 0:00:25]} Kg7 {[%emt 0:00:39]} 28. Rxc6 {[%emt 0:00:28]} Rxc6 {[%emt 0:00:15]} 29. Qxb4 {[%emt 0:00:00]} Qxb4 {[%emt 0:00:30]} 30. Rxb4 {[%emt 0:00:00]} Rc2 {[%emt 0:00:19]} 31. Kf1 {[%emt 0:00:16]} Ra2 {[%emt 0:00:02]} 32. Be1 {[%emt 0:03:05]} Rc8 {[%emt 0:01:33]} 33. Nc3 {[%emt 0:02:48]} Ra3 {[%emt 0:00:25]} 34. Rb1 {[%emt 0:02:56]} Rc4 {[%emt 0:01:14]} 35. Rd1 {[%emt 0:01:24]} Kg6 {[%emt 0:00:03]} 36. Kg1 {[%emt 0:06:42]} Kh5 {[%emt 0:00:33]} 37. Kf1 {[%emt 0:13:43]} Kg6 {[%emt 0:00:21]} 38. Kf2 {[%emt 0:00:15]} Kh5 {[%emt 0:00:32]} 39. Ke2 {[%emt 0:00:08]} Rb4 {[%emt 0:05:48]} 40. Kf1 {[%emt 0:13:32]} Rc4 {[%emt 0:00:51]} 41. Kg1 {[%emt 0:00:07]} Kh6 {[%emt 0:03:00]} 42. Kh1 {[%emt 0:00:36]} Kh5 {[%emt 0:00:19]} 43. Kh2 {[%emt 0:00:29]} Kh6 {[%emt 0:00:09]} 44. Rb1 {[%emt 0:03:04]} Kg6 {[%emt 0:00:47]} 45. Ne2 {[%emt 0:04:05]} Ra2 {[%emt 0:00:50]} 46. Ng1 {[%emt 0:02:55]} Rxd4 {[%emt 0:00:17]} 47. Nf3 {[%emt 0:02:11]} Rxf4 {[%emt 0:04:24]} 48. Nxh4+ {[%emt 0:00:08]} Kg7 {[%emt 0:00:23]} 49. a5 {[%emt 0:00:26]} Rf1 {[%emt 0:01:07]} 50. Kg3 {[%emt 0:00:43]} Rxa5 {[%emt 0:02:20]} 51. Nf3 {[%emt 0:01:48]} Ra2 {[%emt 0:00:59]} 52. h4 {[%emt 0:00:15]} Re2 {[%emt 0:00:10]} 53. Rd1 {[%emt 0:00:57]} Kg6 {[%emt 0:00:22]} 54. Ra1 {[%emt 0:00:48]} d4 {[%emt 0:01:02]} 55. Rd1 {[%emt 0:01:10]} d3 {[%emt 0:00:49]} 56. Rxd3 {[%emt 0:00:45]} Rfxe1 {[%emt 0:00:03]} 57. Nxe1 {[%emt 0:00:04]} Rxe1 {[%emt 0:00:01]} 58. Rd7 {[%emt 0:00:28]} Re3+ {[%emt 0:00:14]} 59. Kf2 {[%emt 0:00:10]} Rxe5 {[%emt 0:00:05]} 60. g3 {[%emt 0:00:56]} Re4 {[%emt 0:00:21]} 61. Kf3 {[%emt 0:00:12]} Kf6 {[%emt 0:00:34]} 62. Ra7 {[%emt 0:00:01]} Rb4 {[%emt 0:00:31]} 63. Rc7 {[%emt 0:00:04]} Rb3+ {[%emt 0:00:38]} 64. Kf2 {[%emt 0:00:01]} Rb6 {[%emt 0:00:01]} 65. Kf3 {[%emt 0:00:11]} e5 {[%emt 0:01:16]} 66. Ra7 {[%emt 0:00:03]} Kg6 {[%emt 0:00:14]} 67. Rc7 {[%emt 0:00:12]} Rb3+ {[%emt 0:00:13]} 68. Kf2 {[%emt 0:00:04]} f6 {[%emt 0:00:05]} 69. Ra7 {[%emt 0:00:02]} e4 {[%emt 0:01:02]} 70. Re7 {[%emt 0:01:08]} Rb2+ {[%emt 0:00:28]} 71. Ke3 {[%emt 0:00:04]} Rg2 {[%emt 0:00:04]} 72. h5+ {[%emt 0:01:08]} Kxh5 {[%emt 0:00:26]} 73. Rg7 {[%emt 0:00:04]} Kh6 {[%emt 0:00:01]} 74. Rg8 {[%emt 0:00:12]} Kh7 {[%emt 0:00:02]} 0-1

[Event "Commonwealth Open 2019"]
[Site "Delhi"]
[Date "2019.07.05"]
[Round "7.21"]
[White "Karthik, Sai Ch"]
[Black "Oatlhotse, Providence"]
[Result "1/2-1/2"]
[ECO "D00"]
[WhiteElo "1963"]
[BlackElo "2244"]
[Annotator "NA"]
[PlyCount "197"]
[EventDate "2019.06.30"]
[EventType "swiss"]
[EventCountry "IND"]
[SourceTitle "playchess.com"]
[Source "ChessBase"]
[SourceQuality "1"]
[TimeControl "5400+30"]

1. d4 {[%emt 0:00:00]} d5 {[%emt 0:00:00]} 2. Bf4 {[%emt 0:00:00]} c5 {[%emt 0:00:00]} 3. e3 {[%emt 0:00:00]} Nc6 {[%emt 0:00:00]} 4. Nf3 {[%emt 0:00:34]} Nf6 {[%emt 0:00:04]} 5. Nbd2 {[%emt 0:00:42]} Bg4 {[%emt 0:00:03]} 6. c3 {[%emt 0:00:55]} e6 {[%emt 0:00:25]} 7. Qa4 {[%emt 0:02:14]} Bxf3 {[%emt 0:05:05]} 8. Nxf3 {[%emt 0:00:35]} Nd7 {[%emt 0:00:07]} 9. Ne5 {[%emt 0:10:49]} Ndxe5 {[%emt 0:00:34]} 10. Bxe5 {[%emt 0:00:15]} Qd7 {[%emt 0:01:14]} 11. Bb5 {[%emt 0:02:17]} a6 {[%emt 0:00:48]} 12. Bxc6 {[%emt 0:00:26]} Qxc6 {[%emt 0:00:08]} 13. Qc2 {[%emt 0:03:23]} cxd4 {[%emt 0:00:54]} 14. exd4 {[%emt 0:00:37]} Qc4 {[%emt 0:00:20]} 15. Qe2 {[%emt 0:02:26]} Rc8 {[%emt 0:00:24]} 16. Qxc4 {[%emt 0:01:33]} Rxc4 {[%emt 0:00:03]} 17. a4 {[%emt 0:00:22]} Kd7 {[%emt 0:00:36]} 18. Kd2 {[%emt 0:00:24]} f6 {[%emt 0:01:10]} 19. Bg3 {[%emt 0:00:16]} h5 {[%emt 0:00:32]} 20. h4 {[%emt 0:02:59]} Be7 {[%emt 0:01:32]} 21. Kd3 {[%emt 0:04:24]} Rhc8 {[%emt 0:00:24]} 22. Rhc1 {[%emt 0:04:50]} R4c6 {[%emt 0:02:17]} 23. Bf4 {[%emt 0:07:48]} Rb6 {[%emt 0:01:47]} 24. Ra2 {[%emt 0:04:10]} Bd6 {[%emt 0:00:25]} 25. Bxd6 {[%emt 0:02:10]} Kxd6 {[%emt 0:00:04]} 26. f4 {[%emt 0:00:44]} Rh8 {[%emt 0:00:35]} 27. Re1 {[%emt 0:01:05]} Rh6 {[%emt 0:00:23]} 28. Re3 {[%emt 0:00:32]} Rg6 {[%emt 0:00:31]} 29. g3 {[%emt 0:00:15]} a5 {[%emt 0:04:26]} 30. Kc2 {[%emt 0:02:19]} Rh6 {[%emt 0:01:31]} 31. Ra1 {[%emt 0:00:51]} Rh8 {[%emt 0:00:17]} 32. Rae1 {[%emt 0:01:16]} Re8 {[%emt 0:00:05]} 33. R1e2 {[%emt 0:03:59]} Rc6 {[%emt 0:00:32]} 34. Re1 {[%emt 0:02:51]} Rc7 {[%emt 0:01:15]} 35. R1e2 {[%emt 0:00:14]} Rce7 {[%emt 0:00:20]} 36. Kd3 {[%emt 0:00:38]} Rb8 {[%emt 0:23:36]} 37. Kc2 {[%emt 0:02:04]} b5 {[%emt 0:06:46]} 38. axb5 {[%emt 0:00:11]} Rxb5 {[%emt 0:00:03]} 39. Kb1 {[%emt 0:00:32]} Re8 {[%emt 0:02:17]} 40. Ka2 {[%emt 0:00:56]} Rb6 {[%emt 0:00:34]} 41. Ka3 {[%emt 0:02:35]} g6 {[%emt 0:00:59]} 42. Ka2 {[%emt 0:00:32]} Kd7 {[%emt 0:00:35]} 43. Ka3 {[%emt 0:00:16]} Rc8 {[%emt 0:00:45]} 44. Ka2 {[%emt 0:00:58]} Rcc6 {[%emt 0:01:10]} 45. Ka3 {[%emt 0:00:45]} Rc4 {[%emt 0:02:41]} 46. Ka2 {[%emt 0:02:56]} a4 {[%emt 0:01:23]} 47. Ka3 {[%emt 0:00:55]} Rb3+ {[%emt 0:00:18]} 48. Ka2 {[%emt 0:00:10]} Rc6 {[%emt 0:00:12]} 49. Re1 {[%emt 0:00:59]} Rcb6 {[%emt 0:00:47]} 50. R1e2 {[%emt 0:00:56]} Ke7 {[%emt 0:04:51]} 51. Rc2 {[%emt 0:03:58]} Kf7 {[%emt 0:01:05]} 52. Rce2 {[%emt 0:00:18]} Rc6 {[%emt 0:01:55]} 53. Rc2 {[%emt 0:00:56]} Ke8 {[%emt 0:01:37]} 54. Rce2 {[%emt 0:00:32]} Kd7 {[%emt 0:00:03]} 55. Rc2 {[%emt 0:00:34]} Kc7 {[%emt 0:00:13]} 56. Rce2 {[%emt 0:00:17]} Rbb6 {[%emt 0:00:09]} 57. Ka3 {[%emt 0:01:51]} Ra6 {[%emt 0:00:48]} 58. Re1 {[%emt 0:04:47]} Kb8 {[%emt 0:00:40]} 59. R1e2 {[%emt 0:00:31]} Kb7 {[%emt 0:00:28]} 60. Re1 {[%emt 0:00:21]} Rcb6 {[%emt 0:06:38]} 61. Ka2 {[%emt 0:00:33]} Kc8 {[%emt 0:01:36]} 62. R1e2 {[%emt 0:01:06]} Rd6 {[%emt 0:03:11]} 63. Re1 {[%emt 0:01:45]} Kd7 {[%emt 0:04:19]} 64. R1e2 {[%emt 0:00:06]} Rab6 {[%emt 0:00:57]} 65. Ka3 {[%emt 0:00:57]} Rb8 {[%emt 0:00:21]} 66. Re1 {[%emt 0:02:25]} Rb3+ {[%emt 0:02:26]} 67. Ka2 {[%emt 0:00:07]} Ke7 {[%emt 0:06:37]} 68. R1e2 {[%emt 0:00:31]} Rdb6 {[%emt 0:00:20]} 69. Rc2 {[%emt 0:00:25]} Kd6 {[%emt 0:05:37]} 70. Rce2 {[%emt 0:00:30]} Kc7 {[%emt 0:01:34]} 71. Rc2 {[%emt 0:01:28]} Kb7 {[%emt 0:01:27]} 72. Rce2 {[%emt 0:00:09]} Ka6 {[%emt 0:00:40]} 73. Rxe6 {[%emt 0:06:51]} Rxb2+ {[%emt 0:00:13]} 74. Rxb2 {[%emt 0:00:08]} Rxe6 {[%emt 0:00:01]} 75. Rb8 {[%emt 0:00:06]} Rc6 {[%emt 0:04:22]} 76. Rd8 {[%emt 0:01:48]} Rxc3 {[%emt 0:01:04]} 77. Rxd5 {[%emt 0:01:45]} Rxg3 {[%emt 0:00:10]} 78. Rd6+ {[%emt 0:00:07]} Kb5 {[%emt 0:00:02]} 79. Rxf6 {[%emt 0:00:07]} Kb4 {[%emt 0:01:42]} 80. f5 {[%emt 0:01:05]} Rg2+ {[%emt 0:00:02]} 81. Kb1 {[%emt 0:00:11]} Rg1+ {[%emt 0:01:20]} 82. Ka2 {[%emt 0:00:16]} Rg2+ {[%emt 0:00:09]} 83. Kb1 {[%emt 0:00:04]} gxf5 {[%emt 0:01:12]} 84. Rxf5 {[%emt 0:00:04]} Rg1+ {[%emt 0:01:08]} 85. Ka2 {[%emt 0:00:02]} Rg2+ {[%emt 0:00:01]} 86. Kb1 {[%emt 0:00:01]} Rg4 {[%emt 0:00:01]} 87. Rxh5 {[%emt 0:01:00]} Rxd4 {[%emt 0:00:09]} 88. Ka2 {[%emt 0:01:40]} Rd2+ {[%emt 0:00:11]} 89. Kb1 {[%emt 0:00:11]} Rh2 {[%emt 0:02:38]} 90. Rg5 {[%emt 0:01:36]} Rh1+ {[%emt 0:00:38]} 91. Ka2 {[%emt 0:00:11]} Rh2+ {[%emt 0:00:24]} 92. Kb1 {[%emt 0:00:07]} Rxh4 {[%emt 0:00:13]} 93. Rg3 {[%emt 0:00:06]} Rf4 {[%emt 0:00:51]} 94. Rh3 {[%emt 0:00:15]} a3 {[%emt 0:00:49]} 95. Rh8 {[%emt 0:00:51]} Rf1+ {[%emt 0:00:27]} 96. Ka2 {[%emt 0:00:08]} Rf2+ {[%emt 0:00:04]} 97. Kb1 {[%emt 0:00:07]} Rb2+ {[%emt 0:00:31]} 98. Ka1 {[%emt 0:00:09]} Rc2 {[%emt 0:00:33]} 99. Rb8+ {[%emt 0:00:13]} 1/2-1/2

[Event "Commonwealth Open 2019"]
[Site "Delhi"]
[Date "2019.07.05"]
[Round "7.22"]
[White "Bidhar, Rutumbara"]
[Black "Michelle Catherina, P."]
[Result "0-1"]
[ECO "E48"]
[WhiteElo "1961"]
[BlackElo "2226"]
[Annotator "NA"]
[PlyCount "90"]
[EventDate "2019.06.30"]
[EventType "swiss"]
[EventCountry "IND"]
[SourceTitle "playchess.com"]
[Source "ChessBase"]
[SourceQuality "1"]
[TimeControl "5400+30"]

1. d4 {[%emt 0:00:00]} Nf6 {[%emt 0:01:51]} 2. c4 {[%emt 0:00:00]} e6 {[%emt 0:00:04]} 3. Nc3 {[%emt 0:00:02]} Bb4 {[%emt 0:00:05]} 4. e3 {[%emt 0:00:13]} O-O {[%emt 0:00:15]} 5. Bd3 {[%emt 0:00:45]} d5 {[%emt 0:00:22]} 6. cxd5 {[%emt 0:01:09]} exd5 {[%emt 0:02:19]} 7. Nge2 {[%emt 0:00:14]} Re8 {[%emt 0:01:54]} 8. O-O {[%emt 0:00:39]} a5 {[%emt 0:01:59]} 9. a3 {[%emt 0:03:15]} Bf8 {[%emt 0:01:56]} 10. Qc2 {[%emt 0:03:54]} Na6 {[%emt 0:06:15]} 11. Rd1 {[%emt 0:06:07]} c6 {[%emt 0:05:14]} 12. e4 {[%emt 0:16:00]} dxe4 {[%emt 0:01:38]} 13. Nxe4 {[%emt 0:03:52]} h6 {[%emt 0:05:10]} 14. N2g3 {[%emt 0:11:40]} Nxe4 {[%emt 0:13:34]} 15. Bxe4 {[%emt 0:01:04]} Bg4 {[%emt 0:03:55]} 16. f3 {[%emt 0:02:22]} Be6 {[%emt 0:01:44]} 17. Be3 {[%emt 0:04:51]} Nc7 {[%emt 0:03:42]} 18. Bf2 {[%emt 0:05:07]} Nd5 {[%emt 0:02:53]} 19. Re1 {[%emt 0:06:04]} Qg5 {[%emt 0:07:50]} 20. Qc1 {[%emt 0:07:21]} Nf4 {[%emt 0:03:41]} 21. Be3 {[%emt 0:02:58]} Bd6 {[%emt 0:00:13]} 22. Qd2 {[%emt 0:04:00]} f5 {[%emt 0:11:38]} 23. Bd3 {[%emt 0:02:17]} Nh3+ {[%emt 0:04:42]} 24. gxh3 {[%emt 0:03:34]} f4 {[%emt 0:02:59]} 25. Kh1 {[%emt 0:05:48]} Bxh3 {[%emt 0:12:15]} 26. Bf2 {[%emt 0:04:46]} Rxe1+ {[%emt 0:03:04]} 27. Bxe1 {[%emt 0:01:57]} fxg3 {[%emt 0:00:26]} 28. Qxg5 {[%emt 0:00:10]} hxg5 {[%emt 0:00:05]} 29. hxg3 {[%emt 0:02:34]} Be6 {[%emt 0:00:55]} 30. Kg2 {[%emt 0:00:40]} g4 {[%emt 0:01:12]} 31. fxg4 {[%emt 0:00:45]} Bd5+ {[%emt 0:00:55]} 32. Kg1 {[%emt 0:00:36]} Rf8 {[%emt 0:00:34]} 33. Bf5 {[%emt 0:00:36]} Rf6 {[%emt 0:00:32]} 34. Bd2 {[%emt 0:00:34]} Bxg3 {[%emt 0:00:29]} 35. Rf1 {[%emt 0:00:27]} a4 {[%emt 0:00:33]} 36. g5 {[%emt 0:00:26]} Rd6 {[%emt 0:00:35]} 37. Bb4 {[%emt 0:00:52]} Rd8 {[%emt 0:00:06]} 38. Bd2 {[%emt 0:00:33]} Re8 {[%emt 0:00:20]} 39. Bf4 {[%emt 0:00:42]} Re2 {[%emt 0:00:53]} 40. Bh3 {[%emt 0:00:34]} Bxf4 {[%emt 0:00:37]} 41. Rxf4 {[%emt 0:00:05]} Rxb2 {[%emt 0:00:09]} 42. Rf2 {[%emt 0:00:34]} Rb3 {[%emt 0:00:20]} 43. Bc8 {[%emt 0:00:26]} b5 {[%emt 0:00:37]} 44. Kh2 {[%emt 0:00:46]} Rxa3 {[%emt 0:00:19]} 45. Bf5 {[%emt 0:00:22]} Ra2 {[%emt 0:00:48]} 0-1